[Event "Titled Tuesday Blitz July 4 Early 2023"]
[White "Sowa, Ryan"]
[Black "Ibarra Jerez, Jose Carlos"]
[WhiteFideId "30901693"]
[BlackFideId "2226332"]
[WhiteElo "2553"]
[BlackElo "2894"]
[Result "0-1"]
[Round "6"]
[TimeControl "180+2"]
[Date "2023.07.04"]
[WhiteClock "0:01:38"]
[BlackClock "0:02:15"]
[Board "51"]

1. Nf3 {[%clk 0:03:00]}  d6 {[%clk 0:03:00]} 2. d4 {[%clk 0:02:58]}  Nf6 {[%clk 0:03:00]} 3. g3 {[%clk 0:02:53]}  g6 {[%clk 0:03:01]} 4. b3 {[%clk 0:02:53]}  Bg7 {[%clk 0:03:01]} 5. Bb2 {[%clk 0:02:54]}  O-O {[%clk 0:03:01]} 6. Bg2 {[%clk 0:02:55]}  b5 {[%clk 0:03:02]} 7. O-O {[%clk 0:02:51]}  Bb7 {[%clk 0:03:00]} 8. Nbd2 {[%clk 0:02:50]}  Nbd7 {[%clk 0:02:59]} 9. c4 {[%clk 0:02:51]}  bxc4 {[%clk 0:02:58]} 10. Nxc4 {[%clk 0:02:52]}  a5 {[%clk 0:02:58]} 11. a3 {[%clk 0:02:45]}  Ra6 {[%clk 0:02:58]} 12. Rc1 {[%clk 0:02:40]}  Qa8 {[%clk 0:02:58]} 13. Ncd2 {[%clk 0:02:36]}  c5 {[%clk 0:02:57]} 14. Qc2 {[%clk 0:02:32]}  Rc8 {[%clk 0:02:55]} 15. Qb1 {[%clk 0:02:32]}  Ne4 {[%clk 0:02:53]} 16. Nxe4 {[%clk 0:02:31]}  Bxe4 {[%clk 0:02:53]} 17. Qa1 {[%clk 0:02:31]}  Rb8 {[%clk 0:02:48]} 18. dxc5 {[%clk 0:02:16]}  Bxb2 {[%clk 0:02:46]} 19. Qxb2 {[%clk 0:02:17]}  Nxc5 {[%clk 0:02:45]} 20. b4 {[%clk 0:02:10]}  axb4 {[%clk 0:02:42]} 21. axb4 {[%clk 0:02:11]}  Ra2 {[%clk 0:02:41]} 22. Qc3 {[%clk 0:01:56]}  Ra3 {[%clk 0:02:39]} 23. Qd2 {[%clk 0:01:47]}  Nb3 {[%clk 0:02:21]} 24. Qh6 {[%clk 0:01:47]}  Nxc1 {[%clk 0:02:21]} 25. Ng5 {[%clk 0:01:38]}  Nxe2+ {[%clk 0:02:15]} 0-1


[Site "https://www.chess.com"]

[Event "Titled Tuesday Blitz July 4 Early 2023"]
[White "Stribuk, Artiom"]
[Black "Tikhonov, Viacheslav"]
[WhiteFideId "13515659"]
[BlackFideId "44196407"]
[WhiteElo "2803"]
[BlackElo "2537"]
[Result "1-0"]
[Round "6"]
[TimeControl "180+2"]
[Date "2023.07.04"]
[WhiteClock "0:00:05"]
[BlackClock "0:00:24"]
[Board "57"]

1. d4 {[%clk 0:03:00]}  Nf6 {[%clk 0:03:00]} 2. c4 {[%clk 0:02:56]}  e6 {[%clk 0:03:00]} 3. g3 {[%clk 0:02:54]}  d5 {[%clk 0:03:01]} 4. Bg2 {[%clk 0:02:54]}  Be7 {[%clk 0:03:02]} 5. Nf3 {[%clk 0:02:54]}  O-O {[%clk 0:03:02]} 6. O-O {[%clk 0:02:55]}  dxc4 {[%clk 0:03:03]} 7. Na3 {[%clk 0:02:56]}  Bxa3 {[%clk 0:03:01]} 8. bxa3 {[%clk 0:02:57]}  Bd7 {[%clk 0:03:01]} 9. Bf4 {[%clk 0:02:55]}  Bc6 {[%clk 0:02:55]} 10. Qc2 {[%clk 0:02:54]}  b5 {[%clk 0:02:53]} 11. a4 {[%clk 0:02:50]}  Be4 {[%clk 0:02:52]} 12. Qb2 {[%clk 0:02:43]}  bxa4 {[%clk 0:02:46]} 13. Rac1 {[%clk 0:02:43]}  Qd5 {[%clk 0:02:44]} 14. Qb4 {[%clk 0:01:58]}  Nbd7 {[%clk 0:02:16]} 15. Qxc4 {[%clk 0:01:52]}  Qxc4 {[%clk 0:02:11]} 16. Rxc4 {[%clk 0:01:53]}  Nd5 {[%clk 0:02:12]} 17. Rfc1 {[%clk 0:01:39]}  N7b6 {[%clk 0:02:10]} 18. Rc5 {[%clk 0:01:38]}  Nxf4 {[%clk 0:02:09]} 19. gxf4 {[%clk 0:01:36]}  Nd5 {[%clk 0:02:07]} 20. e3 {[%clk 0:01:32]}  Rfb8 {[%clk 0:02:05]} 21. Ra5 {[%clk 0:01:24]}  Rb4 {[%clk 0:01:59]} 22. Ne5 {[%clk 0:01:22]}  Bxg2 {[%clk 0:01:57]} 23. Kxg2 {[%clk 0:01:23]}  g6 {[%clk 0:01:51]} 24. Nd3 {[%clk 0:01:22]}  Rb6 {[%clk 0:01:42]} 25. Rxa4 {[%clk 0:01:22]}  a6 {[%clk 0:01:34]} 26. Rc2 {[%clk 0:01:05]}  Rab8 {[%clk 0:01:34]} 27. Ne5 {[%clk 0:01:05]}  Rb2 {[%clk 0:01:32]} 28. Rxb2 {[%clk 0:01:01]}  Rxb2 {[%clk 0:01:33]} 29. Kf3 {[%clk 0:01:02]}  Nc3 {[%clk 0:01:26]} 30. Rc4 {[%clk 0:00:36]}  Nd1 {[%clk 0:01:10]} 31. Rxc7 {[%clk 0:00:36]}  Rxf2+ {[%clk 0:01:09]} 32. Kg3 {[%clk 0:00:37]}  Rxa2 {[%clk 0:01:08]} 33. e4 {[%clk 0:00:34]}  Ra3+ {[%clk 0:00:56]} 34. Kg2 {[%clk 0:00:21]}  f6 {[%clk 0:00:54]} 35. Rc8+ {[%clk 0:00:16]}  Kg7 {[%clk 0:00:54]} 36. Rc7+ {[%clk 0:00:17]}  Kg8 {[%clk 0:00:48]} 37. Nd7 {[%clk 0:00:16]}  Kg7 {[%clk 0:00:41]} 38. Nc5+ {[%clk 0:00:16]}  Kh6 {[%clk 0:00:41]} 39. Nxe6 {[%clk 0:00:16]}  Ne3+ {[%clk 0:00:42]} 40. Kf2 {[%clk 0:00:17]}  Ng4+ {[%clk 0:00:42]} 41. Kg2 {[%clk 0:00:14]}  Ra2+ {[%clk 0:00:40]} 42. Kg3 {[%clk 0:00:13]}  Nxh2 {[%clk 0:00:40]} 43. d5 {[%clk 0:00:12]}  Nf1+ {[%clk 0:00:40]} 44. Kf3 {[%clk 0:00:11]}  Nd2+ {[%clk 0:00:41]} 45. Ke3 {[%clk 0:00:11]}  Nf1+ {[%clk 0:00:41]} 46. Kd3 {[%clk 0:00:10]}  Rd2+ {[%clk 0:00:35]} 47. Kc3 {[%clk 0:00:11]}  Re2 {[%clk 0:00:35]} 48. Nf8 {[%clk 0:00:09]}  Kh5 {[%clk 0:00:33]} 49. Rxh7+ {[%clk 0:00:07]}  Kg4 {[%clk 0:00:34]} 50. d6 {[%clk 0:00:06]}  Rd2 {[%clk 0:00:30]} 51. e5 {[%clk 0:00:06]}  fxe5 {[%clk 0:00:30]} 52. fxe5 {[%clk 0:00:07]}  Kf5 {[%clk 0:00:31]} 53. Re7 {[%clk 0:00:06]}  Rd5 {[%clk 0:00:29]} 54. d7 {[%clk 0:00:05]}  Ne3 {[%clk 0:00:29]} 55. e6 {[%clk 0:00:05]}  Kf6 {[%clk 0:00:29]} 56. Re8 {[%clk 0:00:06]}  Nf5 {[%clk 0:00:27]} 57. d8=Q+ {[%clk 0:00:06]}  Rxd8 {[%clk 0:00:27]} 58. Rxd8 {[%clk 0:00:07]}  Ke7 {[%clk 0:00:28]} 59. Ra8 {[%clk 0:00:07]}  g5 {[%clk 0:00:26]} 60. Kd3 {[%clk 0:00:07]}  g4 {[%clk 0:00:26]} 61. Ke4 {[%clk 0:00:08]}  g3 {[%clk 0:00:26]} 62. Kf3 {[%clk 0:00:07]}  a5 {[%clk 0:00:25]} 63. Kg2 {[%clk 0:00:04]}  a4 {[%clk 0:00:25]} 64. Ng6+ {[%clk 0:00:04]}  Kf6 {[%clk 0:00:25]} 65. Nf4 {[%clk 0:00:04]}  Ke5 {[%clk 0:00:23]} 66. Rxa4 {[%clk 0:00:04]}  Ne3+ {[%clk 0:00:21]} 67. Kxg3 {[%clk 0:00:05]}  Nf1+ {[%clk 0:00:21]} 68. Kg4 {[%clk 0:00:05]}  Ne3+ {[%clk 0:00:22]} 69. Kg5 {[%clk 0:00:05]}  Nc2 {[%clk 0:00:22]} 70. e7 {[%clk 0:00:05]}  Kd6 {[%clk 0:00:21]} 71. e8=Q {[%clk 0:00:05]}  Kc5 {[%clk 0:00:22]} 72. Qc8+ {[%clk 0:00:05]}  Kb5 {[%clk 0:00:23]} 73. Qxc2 {[%clk 0:00:05]}  Kb6 {[%clk 0:00:23]} 74. Qc4 {[%clk 0:00:05]}  Kb7 {[%clk 0:00:24]} 75. Ra6 {[%clk 0:00:05]} 1-0


[Site "https://www.chess.com"]

[Event "Titled Tuesday Blitz July 4 Early 2023"]
[White "Cherniaiev, Tykhon"]
[Black "Jovic, Stanoje"]
[WhiteFideId "14182360"]
[BlackFideId "905020"]
[WhiteElo "2703"]
[BlackElo "2530"]
[Result "1/2-1/2"]
[Round "6"]
[TimeControl "180+2"]
[Date "2023.07.04"]
[WhiteClock "0:00:09"]
[BlackClock "0:00:21"]
[Board "61"]

1. Nf3 {[%clk 0:02:58]}  Nf6 {[%clk 0:02:58]} 2. d4 {[%clk 0:02:59]}  e6 {[%clk 0:02:58]} 3. c4 {[%clk 0:02:59]}  b6 {[%clk 0:02:58]} 4. g3 {[%clk 0:02:59]}  Ba6 {[%clk 0:02:58]} 5. b3 {[%clk 0:02:59]}  Bb4+ {[%clk 0:02:58]} 6. Bd2 {[%clk 0:02:59]}  Be7 {[%clk 0:02:58]} 7. Bg2 {[%clk 0:03:00]}  d5 {[%clk 0:02:58]} 8. O-O {[%clk 0:03:00]}  O-O {[%clk 0:02:57]} 9. Ne5 {[%clk 0:02:59]}  c6 {[%clk 0:02:56]} 10. Qc2 {[%clk 0:02:58]}  Nfd7 {[%clk 0:02:56]} 11. Nxd7 {[%clk 0:02:58]}  Nxd7 {[%clk 0:02:55]} 12. e4 {[%clk 0:02:57]}  dxc4 {[%clk 0:02:46]} 13. bxc4 {[%clk 0:02:58]}  e5 {[%clk 0:02:44]} 14. Be3 {[%clk 0:02:29]}  exd4 {[%clk 0:02:42]} 15. Bxd4 {[%clk 0:02:30]}  Bf6 {[%clk 0:02:41]} 16. Bxf6 {[%clk 0:02:09]}  Qxf6 {[%clk 0:02:41]} 17. Nd2 {[%clk 0:02:07]}  Rfd8 {[%clk 0:02:31]} 18. Rad1 {[%clk 0:02:04]}  Qd4 {[%clk 0:02:25]} 19. Nb3 {[%clk 0:01:10]}  Qxc4 {[%clk 0:02:20]} 20. Qb2 {[%clk 0:01:10]}  Qb4 {[%clk 0:02:10]} 21. Rd4 {[%clk 0:01:04]}  Qe7 {[%clk 0:02:01]} 22. Rfd1 {[%clk 0:01:03]}  c5 {[%clk 0:01:45]} 23. R4d2 {[%clk 0:00:37]}  Nf8 {[%clk 0:01:42]} 24. h4 {[%clk 0:00:22]}  Rxd2 {[%clk 0:01:32]} 25. Rxd2 {[%clk 0:00:22]}  Rd8 {[%clk 0:01:30]} 26. Qa3 {[%clk 0:00:14]}  Rxd2 {[%clk 0:01:18]} 27. Nxd2 {[%clk 0:00:15]}  Bb5 {[%clk 0:01:18]} 28. Qb3 {[%clk 0:00:15]}  Bc6 {[%clk 0:01:13]} 29. Nc4 {[%clk 0:00:16]}  Ne6 {[%clk 0:01:10]} 30. Ne5 {[%clk 0:00:08]}  Nd4 {[%clk 0:01:09]} 31. Nxc6 {[%clk 0:00:08]}  Nxc6 {[%clk 0:01:09]} 32. Qd5 {[%clk 0:00:08]}  Nd8 {[%clk 0:01:01]} 33. e5 {[%clk 0:00:09]}  g6 {[%clk 0:00:59]} 34. f4 {[%clk 0:00:09]}  Ne6 {[%clk 0:00:57]} 35. h5 {[%clk 0:00:09]}  Kg7 {[%clk 0:00:55]} 36. Bh3 {[%clk 0:00:09]}  Nd4 {[%clk 0:00:54]} 37. Kf2 {[%clk 0:00:08]}  gxh5 {[%clk 0:00:53]} 38. f5 {[%clk 0:00:07]}  Qg5 {[%clk 0:00:52]} 39. f6+ {[%clk 0:00:07]}  Kg6 {[%clk 0:00:46]} 40. Qe4+ {[%clk 0:00:05]}  Kh6 {[%clk 0:00:46]} 41. Bd7 {[%clk 0:00:04]}  Qd2+ {[%clk 0:00:46]} 42. Kf1 {[%clk 0:00:05]}  Ne6 {[%clk 0:00:42]} 43. Bxe6 {[%clk 0:00:05]}  fxe6 {[%clk 0:00:42]} 44. Qb7 {[%clk 0:00:05]}  Qc1+ {[%clk 0:00:40]} 45. Kg2 {[%clk 0:00:05]}  Qc2+ {[%clk 0:00:39]} 46. Kh3 {[%clk 0:00:05]}  Qf5+ {[%clk 0:00:39]} 47. Kh2 {[%clk 0:00:06]}  Kg5 {[%clk 0:00:30]} 48. Qg7+ {[%clk 0:00:05]}  Qg6 {[%clk 0:00:31]} 49. Qb7 {[%clk 0:00:05]}  h4 {[%clk 0:00:29]} 50. gxh4+ {[%clk 0:00:03]}  Kh6 {[%clk 0:00:26]} 51. f7 {[%clk 0:00:02]}  Qc2+ {[%clk 0:00:24]} 52. Kh3 {[%clk 0:00:02]}  Qd3+ {[%clk 0:00:24]} 53. Kh2 {[%clk 0:00:02]}  Qe2+ {[%clk 0:00:23]} 54. Kh3 {[%clk 0:00:02]}  Qf1+ {[%clk 0:00:23]} 55. Kh2 {[%clk 0:00:02]}  Kg7 {[%clk 0:00:23]} 56. Qxa7 {[%clk 0:00:03]}  Qxf7 {[%clk 0:00:22]} 57. Qxb6 {[%clk 0:00:03]}  Qf4+ {[%clk 0:00:22]} 58. Kh3 {[%clk 0:00:04]}  Qxe5 {[%clk 0:00:23]} 59. a4 {[%clk 0:00:04]}  Qf5+ {[%clk 0:00:23]} 60. Kh2 {[%clk 0:00:04]}  Qf4+ {[%clk 0:00:23]} 61. Kh3 {[%clk 0:00:05]}  Qf3+ {[%clk 0:00:22]} 62. Kh2 {[%clk 0:00:05]}  Qf2+ {[%clk 0:00:21]} 63. Kh3 {[%clk 0:00:05]}  Qe3+ {[%clk 0:00:20]} 64. Kh2 {[%clk 0:00:06]}  Qd2+ {[%clk 0:00:20]} 65. Kh3 {[%clk 0:00:06]}  Qd3+ {[%clk 0:00:20]} 66. Kh2 {[%clk 0:00:06]}  Qc2+ {[%clk 0:00:20]} 67. Kh3 {[%clk 0:00:07]}  Qxa4 {[%clk 0:00:20]} 68. Qxc5 {[%clk 0:00:07]}  Qb3+ {[%clk 0:00:19]} 69. Kh2 {[%clk 0:00:08]}  Qd5 {[%clk 0:00:20]} 70. Qe7+ {[%clk 0:00:08]}  Kg6 {[%clk 0:00:20]} 71. Kg3 {[%clk 0:00:08]}  Qe5+ {[%clk 0:00:20]} 72. Kh3 {[%clk 0:00:08]}  Qf6 {[%clk 0:00:21]} 73. Qe8+ {[%clk 0:00:08]}  Kf5 {[%clk 0:00:22]} 74. Qh5+ {[%clk 0:00:07]}  Ke4 {[%clk 0:00:22]} 75. Qe2+ {[%clk 0:00:06]}  Kd5 {[%clk 0:00:22]} 76. Qd3+ {[%clk 0:00:07]}  Qd4 {[%clk 0:00:23]} 77. Qxh7 {[%clk 0:00:06]}  e5 {[%clk 0:00:23]} 78. Qd7+ {[%clk 0:00:06]}  Ke4 {[%clk 0:00:23]} 79. Qg4+ {[%clk 0:00:07]}  Kd3 {[%clk 0:00:23]} 80. Qd1+ {[%clk 0:00:07]}  Kc3 {[%clk 0:00:23]} 81. Qa1+ {[%clk 0:00:07]}  Kc2 {[%clk 0:00:23]} 82. Qa2+ {[%clk 0:00:07]}  Kd1 {[%clk 0:00:23]} 83. Qb1+ {[%clk 0:00:08]}  Ke2 {[%clk 0:00:23]} 84. Qc2+ {[%clk 0:00:07]}  Kf3 {[%clk 0:00:22]} 85. Qg2+ {[%clk 0:00:08]}  Ke3 {[%clk 0:00:22]} 86. Qg3+ {[%clk 0:00:08]}  Kd2 {[%clk 0:00:22]} 87. Qg2+ {[%clk 0:00:08]}  Kc3 {[%clk 0:00:23]} 88. Qf3+ {[%clk 0:00:08]}  Kb4 {[%clk 0:00:22]} 89. Qb7+ {[%clk 0:00:08]}  Kc3 {[%clk 0:00:22]} 90. Qc6+ {[%clk 0:00:08]}  Kd2 {[%clk 0:00:22]} 91. Qg2+ {[%clk 0:00:08]}  Kc3 {[%clk 0:00:22]} 92. Qc6+ {[%clk 0:00:09]}  Kd3 {[%clk 0:00:22]} 93. Qb5+ {[%clk 0:00:08]}  Ke3 {[%clk 0:00:22]} 94. Qb3+ {[%clk 0:00:08]}  Ke2 {[%clk 0:00:22]} 95. Qc2+ {[%clk 0:00:09]}  Ke3 {[%clk 0:00:21]} 96. Qb3+ {[%clk 0:00:09]}  Ke4 {[%clk 0:00:21]} 97. Qb7+ {[%clk 0:00:09]}  Kd3 {[%clk 0:00:21]} 98. Qb3+ {[%clk 0:00:09]}  Kd2 {[%clk 0:00:21]} 99. Qa2+ {[%clk 0:00:09]}  Ke3 {[%clk 0:00:21]} 100. Qb3+ {[%clk 0:00:09]} 1/2-1/2


[Site "https://www.chess.com"]

[Event "Titled Tuesday Blitz July 4 Early 2023"]
[White "Deng, Henry"]
[Black "Quintiliano Pinto, Renato R."]
[WhiteFideId "30965454"]
[BlackFideId "2117568"]
[WhiteElo "2519"]
[BlackElo "2687"]
[Result "0-1"]
[Round "6"]
[TimeControl "180+2"]
[Date "2023.07.04"]
[WhiteClock "0:00:04"]
[BlackClock "0:00:08"]
[Board "64"]

1. e4 {[%clk 0:03:00]}  e5 {[%clk 0:02:58]} 2. Nf3 {[%clk 0:02:59]}  Nc6 {[%clk 0:02:57]} 3. Bc4 {[%clk 0:03:00]}  Bc5 {[%clk 0:02:55]} 4. c3 {[%clk 0:03:00]}  Nf6 {[%clk 0:02:54]} 5. d3 {[%clk 0:02:58]}  O-O {[%clk 0:02:53]} 6. O-O {[%clk 0:02:57]}  d5 {[%clk 0:02:53]} 7. exd5 {[%clk 0:02:54]}  Nxd5 {[%clk 0:02:54]} 8. Nbd2 {[%clk 0:02:50]}  Nb6 {[%clk 0:02:48]} 9. Bb5 {[%clk 0:02:49]}  Bd6 {[%clk 0:02:43]} 10. h3 {[%clk 0:02:47]}  a6 {[%clk 0:02:40]} 11. Bxc6 {[%clk 0:02:46]}  bxc6 {[%clk 0:02:41]} 12. Ne4 {[%clk 0:02:44]}  Bf5 {[%clk 0:02:36]} 13. Re1 {[%clk 0:02:41]}  Re8 {[%clk 0:02:35]} 14. Be3 {[%clk 0:02:21]}  Nd5 {[%clk 0:02:31]} 15. Bd2 {[%clk 0:02:16]}  Rb8 {[%clk 0:02:29]} 16. Rb1 {[%clk 0:02:14]}  Bg6 {[%clk 0:02:19]} 17. Qa4 {[%clk 0:02:11]}  f5 {[%clk 0:01:52]} 18. Ng3 {[%clk 0:01:48]}  Nb6 {[%clk 0:01:06]} 19. Qxc6 {[%clk 0:01:33]}  e4 {[%clk 0:00:39]} 20. Bg5 {[%clk 0:01:17]}  Qc8 {[%clk 0:00:19]} 21. dxe4 {[%clk 0:01:15]}  Bxg3 {[%clk 0:00:20]} 22. fxg3 {[%clk 0:01:11]}  fxe4 {[%clk 0:00:20]} 23. Nd4 {[%clk 0:01:07]}  Re5 {[%clk 0:00:19]} 24. Bf4 {[%clk 0:01:05]}  Be8 {[%clk 0:00:17]} 25. Bxe5 {[%clk 0:01:00]}  Bxc6 {[%clk 0:00:17]} 26. Nxc6 {[%clk 0:01:01]}  Ra8 {[%clk 0:00:17]} 27. Rxe4 {[%clk 0:01:00]}  Qe6 {[%clk 0:00:15]} 28. Nd4 {[%clk 0:00:58]}  Qd5 {[%clk 0:00:16]} 29. Rbe1 {[%clk 0:00:58]}  Nc4 {[%clk 0:00:16]} 30. Bf4 {[%clk 0:00:55]}  c5 {[%clk 0:00:15]} 31. Nf3 {[%clk 0:00:55]}  Nxb2 {[%clk 0:00:15]} 32. Re7 {[%clk 0:00:55]}  h6 {[%clk 0:00:15]} 33. Be5 {[%clk 0:00:54]}  Nd3 {[%clk 0:00:15]} 34. Rxg7+ {[%clk 0:00:54]}  Kf8 {[%clk 0:00:15]} 35. Rd1 {[%clk 0:00:46]}  Qe4 {[%clk 0:00:15]} 36. Bf6 {[%clk 0:00:35]}  Qe3+ {[%clk 0:00:15]} 37. Kh2 {[%clk 0:00:35]}  Re8 {[%clk 0:00:14]} 38. Rh7 {[%clk 0:00:34]}  Kg8 {[%clk 0:00:14]} 39. Rh8+ {[%clk 0:00:34]}  Kf7 {[%clk 0:00:14]} 40. Rxe8 {[%clk 0:00:34]}  Kxe8 {[%clk 0:00:15]} 41. Rb1 {[%clk 0:00:27]}  c4 {[%clk 0:00:15]} 42. Rb8+ {[%clk 0:00:25]}  Kf7 {[%clk 0:00:15]} 43. Bd4 {[%clk 0:00:25]}  Qe2 {[%clk 0:00:15]} 44. a4 {[%clk 0:00:24]}  Ke7 {[%clk 0:00:12]} 45. Rb7+ {[%clk 0:00:24]}  Kd8 {[%clk 0:00:12]} 46. Rb6 {[%clk 0:00:24]}  Kc7 {[%clk 0:00:12]} 47. Rxa6 {[%clk 0:00:24]}  Qc2 {[%clk 0:00:11]} 48. Rxh6 {[%clk 0:00:23]}  Nc1 {[%clk 0:00:11]} 49. Rh7+ {[%clk 0:00:23]}  Kb8 {[%clk 0:00:11]} 50. Rh8+ {[%clk 0:00:22]}  Kb7 {[%clk 0:00:11]} 51. Ne5 {[%clk 0:00:20]}  Ne2 {[%clk 0:00:11]} 52. Nf3 {[%clk 0:00:20]}  Nxd4 {[%clk 0:00:10]} 53. cxd4 {[%clk 0:00:20]}  c3 {[%clk 0:00:09]} 54. Rh5 {[%clk 0:00:20]}  Qd1 {[%clk 0:00:09]} 55. Rb5+ {[%clk 0:00:21]}  Ka6 {[%clk 0:00:10]} 56. Rc5 {[%clk 0:00:17]}  c2 {[%clk 0:00:11]} 57. a5 {[%clk 0:00:15]}  c1=Q {[%clk 0:00:07]} 58. Rxc1 {[%clk 0:00:16]}  Qxc1 {[%clk 0:00:06]} 59. Ng1 {[%clk 0:00:10]}  Kxa5 {[%clk 0:00:07]} 60. Nf3 {[%clk 0:00:11]}  Kb5 {[%clk 0:00:07]} 61. Ng1 {[%clk 0:00:11]}  Kc4 {[%clk 0:00:07]} 62. Nf3 {[%clk 0:00:12]}  Kd5 {[%clk 0:00:08]} 63. Ng1 {[%clk 0:00:11]}  Qd1 {[%clk 0:00:08]} 64. Nf3 {[%clk 0:00:11]}  Ke4 {[%clk 0:00:09]} 65. Ng5+ {[%clk 0:00:10]}  Ke3 {[%clk 0:00:09]} 66. Nf3 {[%clk 0:00:10]}  Kf2 {[%clk 0:00:09]} 67. Ne5 {[%clk 0:00:07]}  Qxd4 {[%clk 0:00:08]} 68. Ng4+ {[%clk 0:00:06]}  Kf1 {[%clk 0:00:09]} 69. Kh1 {[%clk 0:00:04]}  Qg1# {[%clk 0:00:08]} 0-1


[Site "https://www.chess.com"]

[Event "Titled Tuesday Blitz July 4 Early 2023"]
[White "Guliev, Logman"]
[Black "Petrosian, Karlen"]
[WhiteFideId "13400061"]
[BlackFideId "4176146"]
[WhiteElo "2508"]
[BlackElo "2683"]
[Result "0-1"]
[Round "6"]
[TimeControl "180+2"]
[Date "2023.07.04"]
[WhiteClock "0:00:00"]
[BlackClock "0:00:12"]
[Board "67"]

1. e4 {[%clk 0:02:54]}  e6 {[%clk 0:02:58]} 2. d4 {[%clk 0:02:53]}  d5 {[%clk 0:02:59]} 3. Nc3 {[%clk 0:02:53]}  Nf6 {[%clk 0:02:59]} 4. Bg5 {[%clk 0:02:52]}  dxe4 {[%clk 0:02:58]} 5. Nxe4 {[%clk 0:02:51]}  Be7 {[%clk 0:02:59]} 6. Bxf6 {[%clk 0:02:51]}  gxf6 {[%clk 0:02:59]} 7. Nf3 {[%clk 0:02:51]}  f5 {[%clk 0:02:59]} 8. Ned2 {[%clk 0:02:49]}  b6 {[%clk 0:02:55]} 9. Bb5+ {[%clk 0:02:48]}  c6 {[%clk 0:02:54]} 10. Bd3 {[%clk 0:02:43]}  Bb7 {[%clk 0:02:54]} 11. Nc4 {[%clk 0:02:43]}  Nd7 {[%clk 0:02:54]} 12. Qe2 {[%clk 0:02:44]}  Qc7 {[%clk 0:02:54]} 13. O-O-O {[%clk 0:02:43]}  Nf6 {[%clk 0:02:54]} 14. Kb1 {[%clk 0:02:42]}  O-O-O {[%clk 0:02:53]} 15. Nce5 {[%clk 0:02:42]}  Bd6 {[%clk 0:02:46]} 16. Ba6 {[%clk 0:02:36]}  Ne4 {[%clk 0:02:42]} 17. Rhf1 {[%clk 0:02:14]}  f6 {[%clk 0:02:12]} 18. Bxb7+ {[%clk 0:02:05]}  Kxb7 {[%clk 0:02:13]} 19. Nc4 {[%clk 0:01:39]}  Bf4 {[%clk 0:02:12]} 20. g3 {[%clk 0:01:35]}  Bh6 {[%clk 0:02:11]} 21. Rd3 {[%clk 0:01:31]}  Rd7 {[%clk 0:01:59]} 22. Ra3 {[%clk 0:01:27]}  b5 {[%clk 0:01:34]} 23. Na5+ {[%clk 0:01:22]}  Ka8 {[%clk 0:01:33]} 24. Nb3 {[%clk 0:01:04]}  Bf8 {[%clk 0:01:30]} 25. Nc5 {[%clk 0:00:45]}  Bxc5 {[%clk 0:00:59]} 26. dxc5 {[%clk 0:00:46]}  Nxc5 {[%clk 0:01:00]} 27. Nd2 {[%clk 0:00:27]}  Rhd8 {[%clk 0:00:58]} 28. Nb3 {[%clk 0:00:28]}  Ne4 {[%clk 0:00:50]} 29. Rc1 {[%clk 0:00:15]}  Qe5 {[%clk 0:00:44]} 30. Qe3 {[%clk 0:00:10]}  Nd6 {[%clk 0:00:39]} 31. Nc5 {[%clk 0:00:08]}  Re7 {[%clk 0:00:26]} 32. Qxe5 {[%clk 0:00:04]}  fxe5 {[%clk 0:00:27]} 33. f3 {[%clk 0:00:04]}  Nc4 {[%clk 0:00:26]} 34. Ra6 {[%clk 0:00:05]}  Rd6 {[%clk 0:00:17]} 35. Ka1 {[%clk 0:00:04]}  Nb6 {[%clk 0:00:13]} 36. b3 {[%clk 0:00:03]}  Nd5 {[%clk 0:00:12]} 37. Kb2 {[%clk 0:00:03]}  Nc7 {[%clk 0:00:12]} 38. Ra5 {[%clk 0:00:02]}  Rd5 {[%clk 0:00:13]} 39. b4 {[%clk 0:00:02]}  Rd6 {[%clk 0:00:12]} 40. a3 {[%clk 0:00:01]}  Nd5 {[%clk 0:00:12]} 41. Re1 {[%clk 0:00:02]}  Nb6 {[%clk 0:00:12]} 42. Rxe5 {[%clk 0:00:02]}  Nc4+ {[%clk 0:00:12]} 43. Kc3 {[%clk 0:00:01]}  Nxe5 {[%clk 0:00:13]} 44. f4 {[%clk 0:00:01]}  Nc4 {[%clk 0:00:13]} 45. Ra6 {[%clk 0:00:00]}  e5 {[%clk 0:00:12]} 0-1


[Site "https://www.chess.com"]

[Event "Titled Tuesday Blitz July 4 Early 2023"]
[White "Rizzo, Tobias"]
[Black "Velikanov, Alexander"]
[WhiteFideId "30942691"]
[BlackFideId "2039290"]
[WhiteElo "2492"]
[BlackElo "2670"]
[Result "0-1"]
[Round "6"]
[TimeControl "180+2"]
[Date "2023.07.04"]
[WhiteClock "0:00:03"]
[BlackClock "0:00:11"]
[Board "68"]

1. d4 {[%clk 0:03:00]}  d5 {[%clk 0:02:59]} 2. Bf4 {[%clk 0:03:00]}  c5 {[%clk 0:02:58]} 3. e3 {[%clk 0:02:59]}  Nc6 {[%clk 0:02:54]} 4. Nc3 {[%clk 0:02:59]}  cxd4 {[%clk 0:02:49]} 5. exd4 {[%clk 0:03:00]}  a6 {[%clk 0:02:45]} 6. Nf3 {[%clk 0:03:00]}  Nf6 {[%clk 0:02:44]} 7. Be2 {[%clk 0:02:55]}  Bg4 {[%clk 0:02:43]} 8. O-O {[%clk 0:02:55]}  Bxf3 {[%clk 0:02:42]} 9. Bxf3 {[%clk 0:02:56]}  e6 {[%clk 0:02:43]} 10. Ne2 {[%clk 0:02:56]}  Bd6 {[%clk 0:02:40]} 11. Qd2 {[%clk 0:02:53]}  O-O {[%clk 0:02:37]} 12. Rfe1 {[%clk 0:02:39]}  Rc8 {[%clk 0:02:30]} 13. Ng3 {[%clk 0:02:33]}  Bxf4 {[%clk 0:02:25]} 14. Qxf4 {[%clk 0:02:34]}  Nb4 {[%clk 0:02:25]} 15. Re2 {[%clk 0:02:22]}  Nxc2 {[%clk 0:02:09]} 16. Rd1 {[%clk 0:02:18]}  Qc7 {[%clk 0:02:03]} 17. Qg5 {[%clk 0:02:06]}  h6 {[%clk 0:01:55]} 18. Qh4 {[%clk 0:02:04]}  Qb6 {[%clk 0:01:41]} 19. Qf4 {[%clk 0:01:31]}  Rc4 {[%clk 0:01:34]} 20. Red2 {[%clk 0:01:26]}  Rfc8 {[%clk 0:01:27]} 21. Ne2 {[%clk 0:01:25]}  Qc7 {[%clk 0:01:14]} 22. Qh4 {[%clk 0:01:17]}  Nb4 {[%clk 0:00:57]} 23. a3 {[%clk 0:01:13]}  Na2 {[%clk 0:00:47]} 24. g4 {[%clk 0:00:52]}  Nc1 {[%clk 0:00:38]} 25. Nc3 {[%clk 0:00:49]}  Qf4 {[%clk 0:00:20]} 26. Qg3 {[%clk 0:00:36]}  Qxg3+ {[%clk 0:00:16]} 27. hxg3 {[%clk 0:00:37]}  Nb3 {[%clk 0:00:15]} 28. Rd3 {[%clk 0:00:38]}  b5 {[%clk 0:00:06]} 29. Kg2 {[%clk 0:00:24]}  Na5 {[%clk 0:00:04]} 30. Be2 {[%clk 0:00:21]}  R4c7 {[%clk 0:00:03]} 31. Na2 {[%clk 0:00:12]}  Nb7 {[%clk 0:00:04]} 32. Nb4 {[%clk 0:00:12]}  a5 {[%clk 0:00:03]} 33. Na2 {[%clk 0:00:11]}  Nd6 {[%clk 0:00:04]} 34. R1d2 {[%clk 0:00:10]}  Nfe4 {[%clk 0:00:03]} 35. Rd1 {[%clk 0:00:10]}  Rc2 {[%clk 0:00:04]} 36. Re3 {[%clk 0:00:07]}  Rxb2 {[%clk 0:00:04]} 37. Nc1 {[%clk 0:00:06]}  Rcc2 {[%clk 0:00:02]} 38. Re1 {[%clk 0:00:04]}  Nc4 {[%clk 0:00:02]} 39. Bxc4 {[%clk 0:00:02]}  Rxf2+ {[%clk 0:00:03]} 40. Kg1 {[%clk 0:00:02]}  Rg2+ {[%clk 0:00:03]} 41. Kh1 {[%clk 0:00:03]}  Rh2+ {[%clk 0:00:04]} 42. Kg1 {[%clk 0:00:03]}  Rbg2+ {[%clk 0:00:04]} 43. Kf1 {[%clk 0:00:04]}  Rf2+ {[%clk 0:00:05]} 44. Kg1 {[%clk 0:00:05]}  Rhg2+ {[%clk 0:00:06]} 45. Kh1 {[%clk 0:00:05]}  bxc4 {[%clk 0:00:07]} 46. Ne2 {[%clk 0:00:04]}  Rh2+ {[%clk 0:00:06]} 47. Kg1 {[%clk 0:00:04]}  Rhg2+ {[%clk 0:00:07]} 48. Kh1 {[%clk 0:00:05]}  c3 {[%clk 0:00:07]} 49. Nxc3 {[%clk 0:00:02]}  Nxg3+ {[%clk 0:00:08]} 50. Rxg3 {[%clk 0:00:03]}  Rxg3 {[%clk 0:00:09]} 51. Nb5 {[%clk 0:00:03]}  Rxg4 {[%clk 0:00:09]} 52. Rc1 {[%clk 0:00:01]}  Rf3 {[%clk 0:00:09]} 53. Kh2 {[%clk 0:00:01]}  Rg5 {[%clk 0:00:08]} 54. a4 {[%clk 0:00:02]}  Rf4 {[%clk 0:00:08]} 55. Kh3 {[%clk 0:00:03]}  Rf3+ {[%clk 0:00:09]} 56. Kh2 {[%clk 0:00:03]}  Rf4 {[%clk 0:00:10]} 57. Kh3 {[%clk 0:00:03]}  Rg6 {[%clk 0:00:10]} 58. Rc8+ {[%clk 0:00:02]}  Kh7 {[%clk 0:00:10]} 59. Rc2 {[%clk 0:00:03]}  Rf5 {[%clk 0:00:11]} 60. Kh4 {[%clk 0:00:04]}  Rf1 {[%clk 0:00:11]} 61. Rh2 {[%clk 0:00:04]}  f5 {[%clk 0:00:11]} 62. Nd6 {[%clk 0:00:03]}  Rg4+ {[%clk 0:00:11]} 63. Kh3 {[%clk 0:00:03]}  Rf3# {[%clk 0:00:11]} 0-1


[Site "https://www.chess.com"]